[Event "Titled Tuesday Blitz December 06 Late 2022"]
[White "Aqib Javaid Butt"]
[Black "Jimenez Almeida, Luis David"]
[WhiteFideId "7801262"]
[BlackFideId "22242244"]
[WhiteElo "1659"]
[BlackElo "2158"]
[Result "0-1"]
[Round "02"]
[TimeControl "180+1"]
[Date "2022.12.07"]
[WhiteClock "0:00:05"]
[BlackClock "0:00:16"]

1. d4 {[%clk 0:02:57]}  g6 {[%clk 0:02:59]} 2. Nf3 {[%clk 0:02:57]}  Bg7 {[%clk 0:02:59]} 3. c4 {[%clk 0:02:58]}  f5 {[%clk 0:02:57]} 4. Nc3 {[%clk 0:02:57]}  Nf6 {[%clk 0:02:57]} 5. g3 {[%clk 0:02:58]}  O-O {[%clk 0:02:57]} 6. Bg2 {[%clk 0:02:58]}  d6 {[%clk 0:02:57]} 7. O-O {[%clk 0:02:59]}  Nc6 {[%clk 0:02:58]} 8. b3 {[%clk 0:02:59]}  e5 {[%clk 0:02:58]} 9. dxe5 {[%clk 0:02:51]}  dxe5 {[%clk 0:02:58]} 10. Bb2 {[%clk 0:02:49]}  e4 {[%clk 0:02:54]} 11. Ne1 {[%clk 0:02:46]}  Be6 {[%clk 0:02:53]} 12. Nc2 {[%clk 0:02:44]}  Qe7 {[%clk 0:02:48]} 13. Nd4 {[%clk 0:02:10]}  Nxd4 {[%clk 0:02:44]} 14. Qxd4 {[%clk 0:02:11]}  c5 {[%clk 0:02:42]} 15. Qd2 {[%clk 0:01:54]}  Rad8 {[%clk 0:02:40]} 16. Qc1 {[%clk 0:01:52]}  Ng4 {[%clk 0:02:31]} 17. h3 {[%clk 0:01:50]}  Ne5 {[%clk 0:02:16]} 18. Na4 {[%clk 0:01:34]}  b6 {[%clk 0:02:13]} 19. Qc2 {[%clk 0:01:26]}  Nc6 {[%clk 0:02:10]} 20. Bxg7 {[%clk 0:01:20]}  Qxg7 {[%clk 0:02:11]} 21. Rad1 {[%clk 0:01:06]}  Qe5 {[%clk 0:01:59]} 22. e3 {[%clk 0:01:00]}  Nb4 {[%clk 0:01:57]} 23. Qb1 {[%clk 0:00:57]}  Nd3 {[%clk 0:01:49]} 24. Qc2 {[%clk 0:00:47]}  Rd7 {[%clk 0:01:41]} 25. Rd2 {[%clk 0:00:44]}  Rfd8 {[%clk 0:01:36]} 26. Rfd1 {[%clk 0:00:44]}  h5 {[%clk 0:01:26]} 27. Bf1 {[%clk 0:00:44]}  Nb4 {[%clk 0:01:09]} 28. Rxd7 {[%clk 0:00:43]}  Nxc2 {[%clk 0:00:57]} 29. Rxd8+ {[%clk 0:00:42]}  Kg7 {[%clk 0:00:58]} 30. Ra8 {[%clk 0:00:33]}  h4 {[%clk 0:00:48]} 31. Rxa7+ {[%clk 0:00:32]}  Kh6 {[%clk 0:00:49]} 32. Kg2 {[%clk 0:00:20]}  hxg3 {[%clk 0:00:45]} 33. Rd2 {[%clk 0:00:20]}  Ne1+ {[%clk 0:00:41]} 34. Kh1 {[%clk 0:00:17]}  Nf3 {[%clk 0:00:34]} 35. Rd8 {[%clk 0:00:16]}  Qa1 {[%clk 0:00:27]} 36. Kg2 {[%clk 0:00:15]}  Nh4+ {[%clk 0:00:20]} 37. Kxg3 {[%clk 0:00:15]}  Kg5 {[%clk 0:00:20]} 38. Bg2 {[%clk 0:00:10]}  Qe5+ {[%clk 0:00:20]} 39. f4+ {[%clk 0:00:09]}  exf3+ {[%clk 0:00:21]} 40. Kf2 {[%clk 0:00:08]}  fxg2 {[%clk 0:00:21]} 41. Nxb6 {[%clk 0:00:07]}  Qb2+ {[%clk 0:00:16]} 42. Kg1 {[%clk 0:00:05]}  Qc1+ {[%clk 0:00:16]} 0-1


[Site "https://www.chess.com"]

[Event "Titled Tuesday Blitz December 06 Late 2022"]
[White "Battlecruiser_Operational"]
[Black "Sattarov, Bobir"]
[BlackFideId "14203081"]
[WhiteElo "2289"]
[BlackElo "2358"]
[Result "0-1"]
[Round "02"]
[TimeControl "180+1"]
[Date "2022.12.07"]
[WhiteClock "0:00:01"]
[BlackClock "0:01:19"]

1. d4 {[%clk 0:02:59]}  Nf6 {[%clk 0:02:59]} 2. c4 {[%clk 0:02:59]}  c5 {[%clk 0:03:00]} 3. d5 {[%clk 0:02:59]}  g6 {[%clk 0:03:00]} 4. Nc3 {[%clk 0:02:59]}  Bg7 {[%clk 0:03:01]} 5. e4 {[%clk 0:02:59]}  d6 {[%clk 0:03:02]} 6. Nf3 {[%clk 0:02:59]}  O-O {[%clk 0:03:02]} 7. Be2 {[%clk 0:02:59]}  e6 {[%clk 0:03:03]} 8. O-O {[%clk 0:02:55]}  exd5 {[%clk 0:03:03]} 9. cxd5 {[%clk 0:02:55]}  Bg4 {[%clk 0:03:03]} 10. Bf4 {[%clk 0:02:53]}  Nh5 {[%clk 0:02:59]} 11. Bg5 {[%clk 0:02:43]}  Qb6 {[%clk 0:02:58]} 12. Qd2 {[%clk 0:02:35]}  Nd7 {[%clk 0:02:46]} 13. h3 {[%clk 0:02:28]}  Bxf3 {[%clk 0:02:46]} 14. Bxf3 {[%clk 0:02:29]}  Nhf6 {[%clk 0:02:46]} 15. Rfe1 {[%clk 0:02:21]}  Rfe8 {[%clk 0:02:46]} 16. Rab1 {[%clk 0:01:56]}  Rac8 {[%clk 0:02:44]} 17. Qf4 {[%clk 0:01:17]}  h5 {[%clk 0:02:32]} 18. g4 {[%clk 0:01:08]}  hxg4 {[%clk 0:02:27]} 19. hxg4 {[%clk 0:01:08]}  Nh7 {[%clk 0:02:26]} 20. Bh6 {[%clk 0:00:55]}  Ne5 {[%clk 0:02:19]} 21. Be2 {[%clk 0:00:50]}  Qd8 {[%clk 0:02:14]} 22. Kg2 {[%clk 0:00:42]}  g5 {[%clk 0:02:14]} 23. Qf5 {[%clk 0:00:40]}  Ng6 {[%clk 0:02:12]} 24. Rh1 {[%clk 0:00:35]}  Bxh6 {[%clk 0:01:57]} 25. Rxh6 {[%clk 0:00:34]}  Nh4+ {[%clk 0:01:56]} 26. Rxh4 {[%clk 0:00:34]}  gxh4 {[%clk 0:01:56]} 27. Bb5 {[%clk 0:00:23]}  Re5 {[%clk 0:01:52]} 28. Qf4 {[%clk 0:00:16]}  a6 {[%clk 0:01:49]} 29. Bd3 {[%clk 0:00:14]}  Nf8 {[%clk 0:01:43]} 30. Rh1 {[%clk 0:00:13]}  Ng6 {[%clk 0:01:43]} 31. Qe3 {[%clk 0:00:13]}  Qg5 {[%clk 0:01:39]} 32. Qxg5 {[%clk 0:00:12]}  Rxg5 {[%clk 0:01:40]} 33. f3 {[%clk 0:00:09]}  Nf4+ {[%clk 0:01:39]} 34. Kf2 {[%clk 0:00:08]}  Nxd3+ {[%clk 0:01:40]} 35. Ke3 {[%clk 0:00:09]}  Nxb2 {[%clk 0:01:31]} 36. Kf4 {[%clk 0:00:02]}  f6 {[%clk 0:01:25]} 37. Rb1 {[%clk 0:00:02]}  Nd3+ {[%clk 0:01:24]} 38. Ke3 {[%clk 0:00:01]}  c4 {[%clk 0:01:19]} 0-1


[Site "https://www.chess.com"]

[Event "Titled Tuesday Blitz December 06 Late 2022"]
[White "BlackChess17"]
[Black "Perske, Thore"]
[BlackFideId "12902195"]
[WhiteElo "2810"]
[BlackElo "2556"]
[Result "1-0"]
[Round "02"]
[TimeControl "180+1"]
[Date "2022.12.07"]
[WhiteClock "0:01:06"]
[BlackClock "0:00:01"]

1. d4 {[%clk 0:03:00]}  Nf6 {[%clk 0:02:56]} 2. Nf3 {[%clk 0:02:58]}  g6 {[%clk 0:02:56]} 3. Bg5 {[%clk 0:02:47]}  Bg7 {[%clk 0:02:56]} 4. Nbd2 {[%clk 0:02:46]}  O-O {[%clk 0:02:54]} 5. c3 {[%clk 0:02:46]}  c5 {[%clk 0:02:50]} 6. dxc5 {[%clk 0:02:44]}  Qc7 {[%clk 0:02:46]} 7. e4 {[%clk 0:02:27]}  Qxc5 {[%clk 0:02:27]} 8. Bd3 {[%clk 0:02:27]}  Nc6 {[%clk 0:02:25]} 9. O-O {[%clk 0:02:22]}  d6 {[%clk 0:02:23]} 10. h3 {[%clk 0:02:21]}  Be6 {[%clk 0:02:16]} 11. Nb3 {[%clk 0:02:13]}  Qb6 {[%clk 0:02:03]} 12. Re1 {[%clk 0:02:01]}  Nd7 {[%clk 0:01:42]} 13. Nbd4 {[%clk 0:01:59]}  Nxd4 {[%clk 0:01:40]} 14. cxd4 {[%clk 0:01:55]}  Bxd4 {[%clk 0:01:15]} 15. Nxd4 {[%clk 0:01:56]}  Qxd4 {[%clk 0:01:15]} 16. Bxe7 {[%clk 0:01:55]}  Rfe8 {[%clk 0:01:16]} 17. Bg5 {[%clk 0:01:54]}  Qxb2 {[%clk 0:01:16]} 18. Rb1 {[%clk 0:01:50]}  Qxa2 {[%clk 0:01:15]} 19. Rxb7 {[%clk 0:01:43]}  Rab8 {[%clk 0:00:58]} 20. Rc7 {[%clk 0:01:27]}  Qa5 {[%clk 0:00:51]} 21. Qc1 {[%clk 0:01:25]}  Nc5 {[%clk 0:00:46]} 22. Bf6 {[%clk 0:01:24]}  Qxe1+ {[%clk 0:00:17]} 23. Qxe1 {[%clk 0:01:23]}  Nxd3 {[%clk 0:00:18]} 24. Qe3 {[%clk 0:01:20]}  Rb1+ {[%clk 0:00:13]} 25. Kh2 {[%clk 0:01:20]}  Ne1 {[%clk 0:00:02]} 26. Rc8 {[%clk 0:01:06]}  Rxc8 {[%clk 0:00:01]} 27. Qh6 {[%clk 0:01:06]} 1-0


[Site "https://www.chess.com"]

[Event "Titled Tuesday Blitz December 06 Late 2022"]
[White "Bongo Akanga Ndjila, Barthelemy"]
[Black "Khandelwal, Ankush"]
[WhiteFideId "10609431"]
[BlackFideId "413470"]
[WhiteElo "1768"]
[BlackElo "2271"]
[Result "0-1"]
[Round "02"]
[TimeControl "180+1"]
[Date "2022.12.07"]
[WhiteClock "0:00:10"]
[BlackClock "0:00:11"]

1. d4 {[%clk 0:02:57]}  Nf6 {[%clk 0:02:59]} 2. c4 {[%clk 0:02:57]}  g6 {[%clk 0:02:58]} 3. Nc3 {[%clk 0:02:56]}  Bg7 {[%clk 0:02:57]} 4. e4 {[%clk 0:02:55]}  d6 {[%clk 0:02:58]} 5. Be2 {[%clk 0:02:55]}  O-O {[%clk 0:02:56]} 6. Nf3 {[%clk 0:02:55]}  Na6 {[%clk 0:02:56]} 7. O-O {[%clk 0:02:50]}  e5 {[%clk 0:02:56]} 8. Be3 {[%clk 0:02:39]}  Qe7 {[%clk 0:02:38]} 9. h3 {[%clk 0:02:30]}  Nxe4 {[%clk 0:02:30]} 10. Nd5 {[%clk 0:02:25]}  Qd8 {[%clk 0:02:17]} 11. dxe5 {[%clk 0:02:24]}  dxe5 {[%clk 0:02:16]} 12. Qc2 {[%clk 0:02:22]}  f5 {[%clk 0:02:05]} 13. Rad1 {[%clk 0:02:18]}  Qe8 {[%clk 0:02:05]} 14. c5 {[%clk 0:02:15]}  c6 {[%clk 0:02:01]} 15. Bxa6 {[%clk 0:01:58]}  cxd5 {[%clk 0:02:01]} 16. Be2 {[%clk 0:01:42]}  d4 {[%clk 0:01:57]} 17. Bc1 {[%clk 0:01:39]}  Be6 {[%clk 0:01:56]} 18. Bc4 {[%clk 0:01:37]}  Nxc5 {[%clk 0:01:53]} 19. Bxe6+ {[%clk 0:01:34]}  Nxe6 {[%clk 0:01:54]} 20. Qb3 {[%clk 0:01:34]}  Qc6 {[%clk 0:01:42]} 21. Ng5 {[%clk 0:01:28]}  Rae8 {[%clk 0:01:41]} 22. Rfe1 {[%clk 0:01:05]}  e4 {[%clk 0:01:22]} 23. Bf4 {[%clk 0:00:59]}  Kh8 {[%clk 0:01:19]} 24. Nxe6 {[%clk 0:00:57]}  Rxe6 {[%clk 0:01:20]} 25. Rc1 {[%clk 0:00:57]}  Qb6 {[%clk 0:01:18]} 26. Qa3 {[%clk 0:00:56]}  d3 {[%clk 0:01:11]} 27. Rc7 {[%clk 0:00:48]}  d2 {[%clk 0:00:36]} 28. Rd1 {[%clk 0:00:43]}  Rd8 {[%clk 0:00:36]} 29. Rc2 {[%clk 0:00:37]}  Rd3 {[%clk 0:00:29]} 30. b3 {[%clk 0:00:29]}  e3 {[%clk 0:00:19]} 31. Rc8+ {[%clk 0:00:22]}  Rd8 {[%clk 0:00:19]} 32. Bxe3 {[%clk 0:00:18]}  Rxc8 {[%clk 0:00:14]} 33. Bxb6 {[%clk 0:00:16]}  axb6 {[%clk 0:00:15]} 34. Rxd2 {[%clk 0:00:15]}  Re1+ {[%clk 0:00:15]} 35. Kh2 {[%clk 0:00:16]}  Be5+ {[%clk 0:00:16]} 36. g3 {[%clk 0:00:16]}  Bf6 {[%clk 0:00:16]} 37. Qd6 {[%clk 0:00:15]}  Rc6 {[%clk 0:00:13]} 38. Qd7 {[%clk 0:00:11]}  Rcc1 {[%clk 0:00:09]} 39. Qe8+ {[%clk 0:00:11]}  Kg7 {[%clk 0:00:09]} 40. Rd7+ {[%clk 0:00:10]}  Kh6 {[%clk 0:00:10]} 41. Qf8+ {[%clk 0:00:09]}  Kg5 {[%clk 0:00:10]} 42. h4+ {[%clk 0:00:09]}  Kg4 {[%clk 0:00:11]} 43. Qxf6 {[%clk 0:00:10]}  Rh1+ {[%clk 0:00:10]} 44. Kg2 {[%clk 0:00:10]}  Rcg1# {[%clk 0:00:11]} 0-1


[Site "https://www.chess.com"]

[Event "Titled Tuesday Blitz December 06 Late 2022"]
[White "Boyer, Mahel"]
[Black "monkins"]
[WhiteFideId "45102422"]
[WhiteElo "2455"]
[BlackElo "2242"]
[Result "1-0"]
[Round "02"]
[TimeControl "180+1"]
[Date "2022.12.07"]
[WhiteClock "0:00:22"]
[BlackClock "0:00:01"]

1. e4 {[%clk 0:03:00]}  c6 {[%clk 0:02:59]} 2. d4 {[%clk 0:02:58]}  d5 {[%clk 0:03:00]} 3. Nd2 {[%clk 0:02:58]}  dxe4 {[%clk 0:03:00]} 4. Nxe4 {[%clk 0:02:59]}  Nf6 {[%clk 0:03:00]} 5. Bd3 {[%clk 0:02:52]}  Nxe4 {[%clk 0:02:58]} 6. Bxe4 {[%clk 0:02:53]}  Nd7 {[%clk 0:02:56]} 7. Ne2 {[%clk 0:02:44]}  Nf6 {[%clk 0:02:57]} 8. Bf3 {[%clk 0:02:44]}  Bf5 {[%clk 0:02:52]} 9. Ng3 {[%clk 0:02:43]}  Bg6 {[%clk 0:02:52]} 10. h4 {[%clk 0:02:43]}  h6 {[%clk 0:02:44]} 11. h5 {[%clk 0:02:42]}  Bh7 {[%clk 0:02:44]} 12. O-O {[%clk 0:02:40]}  e6 {[%clk 0:02:44]} 13. c3 {[%clk 0:02:35]}  Bd6 {[%clk 0:02:44]} 14. Ne2 {[%clk 0:02:34]}  Qc7 {[%clk 0:02:42]} 15. c4 {[%clk 0:02:26]}  O-O {[%clk 0:02:26]} 16. c5 {[%clk 0:02:26]}  Be7 {[%clk 0:02:25]} 17. Bf4 {[%clk 0:02:25]}  Qd7 {[%clk 0:02:19]} 18. Ng3 {[%clk 0:02:22]}  Nd5 {[%clk 0:02:04]} 19. Be5 {[%clk 0:02:15]}  f6 {[%clk 0:01:58]} 20. Bd6 {[%clk 0:02:07]}  Bxd6 {[%clk 0:01:57]} 21. cxd6 {[%clk 0:02:08]}  Qxd6 {[%clk 0:01:57]} 22. Re1 {[%clk 0:02:03]}  Rfe8 {[%clk 0:01:52]} 23. Qb3 {[%clk 0:02:02]}  b6 {[%clk 0:01:22]} 24. Rac1 {[%clk 0:01:58]}  Rac8 {[%clk 0:01:04]} 25. Be4 {[%clk 0:01:37]}  Bxe4 {[%clk 0:00:37]} 26. Nxe4 {[%clk 0:01:37]}  Qf4 {[%clk 0:00:37]} 27. Qa3 {[%clk 0:01:18]}  Rc7 {[%clk 0:00:19]} 28. Qd6 {[%clk 0:01:12]}  Qxd6 {[%clk 0:00:16]} 29. Nxd6 {[%clk 0:01:13]}  Ree7 {[%clk 0:00:14]} 30. g3 {[%clk 0:01:13]}  Nb4 {[%clk 0:00:09]} 31. Rc4 {[%clk 0:01:03]}  a5 {[%clk 0:00:07]} 32. a3 {[%clk 0:01:03]}  Nd5 {[%clk 0:00:06]} 33. Rec1 {[%clk 0:00:57]}  Red7 {[%clk 0:00:05]} 34. Rxc6 {[%clk 0:00:53]}  Rxc6 {[%clk 0:00:05]} 35. Rxc6 {[%clk 0:00:54]}  Kf8 {[%clk 0:00:06]} 36. Nc4 {[%clk 0:00:54]}  Rb7 {[%clk 0:00:03]} 37. Rxe6 {[%clk 0:00:53]}  Kf7 {[%clk 0:00:03]} 38. Rd6 {[%clk 0:00:52]}  Nc7 {[%clk 0:00:03]} 39. Rd7+ {[%clk 0:00:49]}  Ke6 {[%clk 0:00:02]} 40. Rxg7 {[%clk 0:00:49]}  Ra7 {[%clk 0:00:01]} 41. Nxb6 {[%clk 0:00:49]}  Nb5 {[%clk 0:00:01]} 42. Rxa7 {[%clk 0:00:48]}  Nxa7 {[%clk 0:00:02]} 43. Nc4 {[%clk 0:00:48]}  Nc6 {[%clk 0:00:01]} 44. b4 {[%clk 0:00:27]}  Kd5 {[%clk 0:00:02]} 45. Nxa5 {[%clk 0:00:27]}  Nxd4 {[%clk 0:00:01]} 46. Kg2 {[%clk 0:00:23]}  Nc2 {[%clk 0:00:01]} 47. b5 {[%clk 0:00:21]}  Nxa3 {[%clk 0:00:01]} 48. b6 {[%clk 0:00:22]} 1-0


[Site "https://www.chess.com"]

[Event "Titled Tuesday Blitz December 06 Late 2022"]
[White "Burke, Paul"]
[Black "Koellner, Ruben Gideon"]
[WhiteFideId "2605767"]
[BlackFideId "12993093"]
[WhiteElo "1875"]
[BlackElo "2303"]
[Result "0-1"]
[Round "02"]
[TimeControl "180+1"]
[Date "2022.12.07"]
[WhiteClock "0:00:54"]
[BlackClock "0:01:47"]

1. e4 {[%clk 0:03:00]}  d6 {[%clk 0:03:00]} 2. Nc3 {[%clk 0:02:57]}  Nf6 {[%clk 0:03:00]} 3. g3 {[%clk 0:02:57]}  e5 {[%clk 0:03:00]} 4. Bg2 {[%clk 0:02:57]}  c5 {[%clk 0:03:01]} 5. Nge2 {[%clk 0:02:57]}  Nc6 {[%clk 0:03:01]} 6. O-O {[%clk 0:02:56]}  Be7 {[%clk 0:03:02]} 7. h3 {[%clk 0:02:56]}  O-O {[%clk 0:03:02]} 8. Nd5 {[%clk 0:02:56]}  Nxd5 {[%clk 0:03:01]} 9. exd5 {[%clk 0:02:55]}  Nd4 {[%clk 0:03:02]} 10. c3 {[%clk 0:02:54]}  Nxe2+ {[%clk 0:03:01]} 11. Qxe2 {[%clk 0:02:54]}  Bd7 {[%clk 0:02:59]} 12. f4 {[%clk 0:02:50]}  Bf6 {[%clk 0:02:55]} 13. d3 {[%clk 0:02:47]}  Qb6 {[%clk 0:02:50]} 14. Kh2 {[%clk 0:02:44]}  Rae8 {[%clk 0:02:50]} 15. Qc2 {[%clk 0:02:40]}  Bb5 {[%clk 0:02:41]} 16. c4 {[%clk 0:02:39]}  Bd7 {[%clk 0:02:40]} 17. Rb1 {[%clk 0:02:19]}  a5 {[%clk 0:02:39]} 18. b3 {[%clk 0:02:18]}  g6 {[%clk 0:02:35]} 19. Bb2 {[%clk 0:02:05]}  Qd8 {[%clk 0:02:33]} 20. fxe5 {[%clk 0:02:03]}  Bxe5 {[%clk 0:02:33]} 21. Bxe5 {[%clk 0:02:02]}  Rxe5 {[%clk 0:02:34]} 22. Rbe1 {[%clk 0:02:01]}  Qe7 {[%clk 0:02:32]} 23. Rxe5 {[%clk 0:01:53]}  Qxe5 {[%clk 0:02:33]} 24. Qf2 {[%clk 0:01:53]}  f5 {[%clk 0:02:16]} 25. Re1 {[%clk 0:01:38]}  Qf6 {[%clk 0:02:17]} 26. Re6 {[%clk 0:01:24]}  Bxe6 {[%clk 0:02:09]} 27. dxe6 {[%clk 0:01:23]}  Kg7 {[%clk 0:02:08]} 28. Bd5 {[%clk 0:01:18]}  Re8 {[%clk 0:02:07]} 29. Qe2 {[%clk 0:01:16]}  Qe5 {[%clk 0:02:07]} 30. Qf2 {[%clk 0:01:09]}  Rxe6 {[%clk 0:02:05]} 31. Bxe6 {[%clk 0:01:08]}  Qxe6 {[%clk 0:02:06]} 32. Qf3 {[%clk 0:01:08]}  Qf7 {[%clk 0:01:57]} 33. Qf4 {[%clk 0:01:06]}  Qe7 {[%clk 0:01:55]} 34. Qf3 {[%clk 0:01:05]}  h6 {[%clk 0:01:50]} 35. Kg2 {[%clk 0:01:05]}  Qd7 {[%clk 0:01:49]} 36. Qf4 {[%clk 0:01:03]}  g5 {[%clk 0:01:46]} 37. Qf3 {[%clk 0:00:58]}  Qc6 {[%clk 0:01:46]} 38. Qxc6 {[%clk 0:00:57]}  bxc6 {[%clk 0:01:46]} 39. Kf3 {[%clk 0:00:57]}  Kf6 {[%clk 0:01:47]} 40. h4 {[%clk 0:00:56]}  Ke5 {[%clk 0:01:46]} 41. hxg5 {[%clk 0:00:56]}  hxg5 {[%clk 0:01:47]} 42. Ke2 {[%clk 0:00:54]}  Kd4 {[%clk 0:01:47]} 0-1


[Site "https://www.chess.com"]

[Event "Titled Tuesday Blitz December 06 Late 2022"]
[White "Curtis, John"]
[Black "Jaskolka, Tomasz"]
[WhiteFideId "3200256"]
[BlackFideId "1170791"]
[WhiteElo "2203"]
[BlackElo "2126"]
[Result "1-0"]
[Round "02"]
[TimeControl "180+1"]
[Date "2022.12.07"]
[WhiteClock "0:00:05"]
[BlackClock "0:00:08"]

1. d4 {[%clk 0:03:00]}  Nf6 {[%clk 0:02:56]} 2. c4 {[%clk 0:03:00]}  e6 {[%clk 0:02:54]} 3. Nc3 {[%clk 0:03:00]}  Bb4 {[%clk 0:02:52]} 4. Qc2 {[%clk 0:03:00]}  O-O {[%clk 0:02:52]} 5. Nf3 {[%clk 0:02:59]}  d5 {[%clk 0:02:51]} 6. cxd5 {[%clk 0:02:53]}  exd5 {[%clk 0:02:51]} 7. Bg5 {[%clk 0:02:53]}  c6 {[%clk 0:02:51]} 8. e3 {[%clk 0:02:52]}  h6 {[%clk 0:02:50]} 9. Bxf6 {[%clk 0:02:43]}  Qxf6 {[%clk 0:02:49]} 10. Bd3 {[%clk 0:02:38]}  Be6 {[%clk 0:02:43]} 11. O-O {[%clk 0:02:37]}  Nd7 {[%clk 0:02:43]} 12. a3 {[%clk 0:02:34]}  Bd6 {[%clk 0:02:42]} 13. e4 {[%clk 0:02:33]}  dxe4 {[%clk 0:02:37]} 14. Nxe4 {[%clk 0:02:33]}  Qe7 {[%clk 0:02:37]} 15. Nxd6 {[%clk 0:02:33]}  Qxd6 {[%clk 0:02:38]} 16. Be4 {[%clk 0:02:32]}  Nf6 {[%clk 0:02:37]} 17. Bf5 {[%clk 0:02:25]}  Rad8 {[%clk 0:02:34]} 18. Bxe6 {[%clk 0:02:23]}  Qxe6 {[%clk 0:02:29]} 19. Rfe1 {[%clk 0:02:23]}  Qd6 {[%clk 0:02:29]} 20. Re2 {[%clk 0:02:19]}  Rfe8 {[%clk 0:02:24]} 21. Rae1 {[%clk 0:02:19]}  Rxe2 {[%clk 0:02:24]} 22. Rxe2 {[%clk 0:02:19]}  Nd5 {[%clk 0:02:24]} 23. g3 {[%clk 0:02:17]}  Qf6 {[%clk 0:02:13]} 24. Kg2 {[%clk 0:02:11]}  Nc7 {[%clk 0:02:07]} 25. Re4 {[%clk 0:02:06]}  Ne6 {[%clk 0:02:02]} 26. Qe2 {[%clk 0:01:46]}  Rd5 {[%clk 0:01:17]} 27. Qe3 {[%clk 0:01:40]}  Qd8 {[%clk 0:01:04]} 28. h4 {[%clk 0:01:29]}  Rf5 {[%clk 0:01:02]} 29. b4 {[%clk 0:01:11]}  Qd5 {[%clk 0:00:59]} 30. Kg1 {[%clk 0:01:00]}  Qa2 {[%clk 0:00:44]} 31. Kg2 {[%clk 0:00:56]}  Qb1 {[%clk 0:00:42]} 32. Nd2 {[%clk 0:00:42]}  Qa2 {[%clk 0:00:38]} 33. Nf3 {[%clk 0:00:42]}  Qd5 {[%clk 0:00:39]} 34. Kg1 {[%clk 0:00:40]}  g6 {[%clk 0:00:37]} 35. Kg2 {[%clk 0:00:20]}  Kh7 {[%clk 0:00:36]} 36. Kg1 {[%clk 0:00:20]}  Kg7 {[%clk 0:00:30]} 37. Ne5 {[%clk 0:00:14]}  Nxd4 {[%clk 0:00:23]} 38. Qxd4 {[%clk 0:00:14]}  Qxd4 {[%clk 0:00:24]} 39. Rxd4 {[%clk 0:00:15]}  Rxe5 {[%clk 0:00:24]} 40. Rd7 {[%clk 0:00:15]}  Rb5 {[%clk 0:00:25]} 41. Kg2 {[%clk 0:00:11]}  Kf6 {[%clk 0:00:25]} 42. Kf3 {[%clk 0:00:11]}  Ke6 {[%clk 0:00:26]} 43. Rc7 {[%clk 0:00:11]}  h5 {[%clk 0:00:24]} 44. g4 {[%clk 0:00:11]}  hxg4+ {[%clk 0:00:24]} 45. Kxg4 {[%clk 0:00:11]}  a6 {[%clk 0:00:23]} 46. f4 {[%clk 0:00:11]}  Kf6 {[%clk 0:00:23]} 47. Rd7 {[%clk 0:00:09]}  a5 {[%clk 0:00:22]} 48. bxa5 {[%clk 0:00:09]}  Ke6 {[%clk 0:00:23]} 49. Rc7 {[%clk 0:00:08]}  f6 {[%clk 0:00:23]} 50. a6 {[%clk 0:00:08]}  Kd6 {[%clk 0:00:22]} 51. Rxb7 {[%clk 0:00:08]}  Ra5 {[%clk 0:00:08]} 52. a7 {[%clk 0:00:08]}  Rxa3 {[%clk 0:00:08]} 53. f5 {[%clk 0:00:08]}  Ra4+ {[%clk 0:00:08]} 54. Kg3 {[%clk 0:00:09]}  gxf5 {[%clk 0:00:08]} 55. h5 {[%clk 0:00:09]}  Ke5 {[%clk 0:00:06]} 56. h6 {[%clk 0:00:09]}  f4+ {[%clk 0:00:07]} 57. Kf2 {[%clk 0:00:07]}  Ra2+ {[%clk 0:00:07]} 58. Kf3 {[%clk 0:00:07]}  Ra3+ {[%clk 0:00:05]} 59. Kf2 {[%clk 0:00:07]}  Ke4 {[%clk 0:00:05]} 60. h7 {[%clk 0:00:07]}  Ra2+ {[%clk 0:00:06]} 61. Ke1 {[%clk 0:00:07]}  Ra1+ {[%clk 0:00:06]} 62. Kd2 {[%clk 0:00:07]}  Ra2+ {[%clk 0:00:06]} 63. Kc3 {[%clk 0:00:06]}  f3 {[%clk 0:00:03]} 64. h8=Q {[%clk 0:00:06]}  Ra3+ {[%clk 0:00:04]} 65. Kb2 {[%clk 0:00:06]}  Rd3 {[%clk 0:00:04]} 66. Qh4+ {[%clk 0:00:05]}  Ke3 {[%clk 0:00:05]} 67. a8=Q {[%clk 0:00:05]}  f2 {[%clk 0:00:05]} 68. Qe8+ {[%clk 0:00:06]}  Kd2 {[%clk 0:00:06]} 69. Qf4+ {[%clk 0:00:05]}  Kd1 {[%clk 0:00:06]} 70. Qxf2 {[%clk 0:00:05]}  Rd2+ {[%clk 0:00:07]} 71. Qxd2+ {[%clk 0:00:05]}  Kxd2 {[%clk 0:00:08]} 72. Rd7# {[%clk 0:00:05]} 1-0


[Site "https://www.chess.com"]

[Event "Titled Tuesday Blitz December 06 Late 2022"]
[White "Danielyan, Vahe"]
[Black "Drozdowski, Kacper"]
[WhiteFideId "13304828"]
[BlackFideId "1136720"]
[WhiteElo "2423"]
[BlackElo "2486"]
[Result "0-1"]
[Round "02"]
[TimeControl "180+1"]
[Date "2022.12.06"]
[WhiteClock "0:00:42"]
[BlackClock "0:00:52"]

1. e4 {[%clk 0:03:00]}  c5 {[%clk 0:02:59]} 2. Nc3 {[%clk 0:03:00]}  e6 {[%clk 0:02:59]} 3. g3 {[%clk 0:03:00]}  Nc6 {[%clk 0:02:59]} 4. Bg2 {[%clk 0:03:00]}  g6 {[%clk 0:02:59]} 5. Nge2 {[%clk 0:03:01]}  Bg7 {[%clk 0:03:00]} 6. d3 {[%clk 0:03:01]}  Nge7 {[%clk 0:03:01]} 7. h4 {[%clk 0:02:58]}  h5 {[%clk 0:03:00]} 8. Bg5 {[%clk 0:02:59]}  Nd4 {[%clk 0:02:59]} 9. Qd2 {[%clk 0:02:59]}  d6 {[%clk 0:02:54]} 10. a3 {[%clk 0:02:57]}  Qb6 {[%clk 0:02:53]} 11. O-O {[%clk 0:02:54]}  Bd7 {[%clk 0:02:51]} 12. Rab1 {[%clk 0:02:51]}  Nec6 {[%clk 0:02:48]} 13. Rfe1 {[%clk 0:02:47]}  Ne5 {[%clk 0:02:44]} 14. Nxd4 {[%clk 0:02:33]}  cxd4 {[%clk 0:02:44]} 15. Ne2 {[%clk 0:02:32]}  Rc8 {[%clk 0:02:41]} 16. c3 {[%clk 0:02:31]}  dxc3 {[%clk 0:02:23]} 17. bxc3 {[%clk 0:02:32]}  Qc7 {[%clk 0:02:21]} 18. d4 {[%clk 0:02:09]}  Ng4 {[%clk 0:02:12]} 19. e5 {[%clk 0:02:02]}  d5 {[%clk 0:01:56]} 20. Rec1 {[%clk 0:01:50]}  b5 {[%clk 0:01:48]} 21. Nf4 {[%clk 0:01:43]}  Bc6 {[%clk 0:01:43]} 22. Nd3 {[%clk 0:01:43]}  Nh6 {[%clk 0:01:38]} 23. Nc5 {[%clk 0:01:42]}  Nf5 {[%clk 0:01:38]} 24. Bf1 {[%clk 0:01:42]}  Qa5 {[%clk 0:01:33]} 25. Bf6 {[%clk 0:01:31]}  O-O {[%clk 0:01:28]} 26. Qg5 {[%clk 0:01:24]}  Bh6 {[%clk 0:01:27]} 27. Nxe6 {[%clk 0:00:56]}  Bxg5 {[%clk 0:01:25]} 28. Nxg5 {[%clk 0:00:57]}  Bd7 {[%clk 0:01:22]} 29. Bg2 {[%clk 0:00:56]}  Be6 {[%clk 0:01:14]} 30. Bf1 {[%clk 0:00:54]}  a6 {[%clk 0:01:08]} 31. a4 {[%clk 0:00:53]}  Rxc3 {[%clk 0:01:03]} 32. Rd1 {[%clk 0:00:48]}  b4 {[%clk 0:01:00]} 33. Bh3 {[%clk 0:00:42]}  Rfc8 {[%clk 0:00:52]} 0-1


[Site "https://www.chess.com"]